Cogmind - Beta 12 @@@ ROGUE MODE // 2024.01.04 @ 22:41:56 Player: Darcyisverycute Result: Destroyed by D-53 Grenadier with Mini Grenade Launcher Performance ------------- Evolutions (1) 500 Regions Visited (4) 800 Robots Destroyed (19) 95 Value Destroyed (286) 286 Prototype IDs (0) 0 Alien Tech Used (0) 0 Bonus (64) 64 TOTAL SCORE: 1745 Bonus ------- Follower Combat Kills 64 Cogmind --------- Core Integrity 0/400 Matter 260/300 Energy 29/100 System Corruption 1% Temperature Cool (0) Movement Flying (34) Location -9/Mines Parts ------- > --- POWER (1) -------- (None) > --- PROPULSION (3) --- Flight Unit Flight Unit Flight Unit > --- UTILITY (3) ------ Medium Storage Unit > --- WEAPON (2) ------- Mining Claw > --- INVENTORY (10) --- Light Ion Engine Flight Unit Flight Unit Experimental Sensor Array Peak State ------------ > --- POWER ------------ Ion Engine > --- PROPULSION ------- Aluminum Leg Aluminum Leg > --- UTILITY ---------- Heat Sink Small Storage Unit > --- WEAPON ----------- Assault Rifle Light Assault Rifle > --- INVENTORY -------- Ion Engine Light Ion Engine Aluminum Leg Aluminum Leg Experimental Sensor Array Assault Rifle [Rating: 8] Favorites ----------- Power Ion Engine Engine Ion Engine Propulsion Aluminum Leg Leg Aluminum Leg Flight Unit Flight Unit Utility Heat Sink Device Heat Sink Storage Medium Storage Unit Weapon Light Assault Rifle Ballistic Gun Light Assault Rifle Launcher Rocket Launcher Slashing Weapon Mining Claw Build | -11 -10 -10 -9 -9 ------- Run | Jun Mat Min Mat Min Slots Evolved 2 | . . . 2 . Power . | . . . . . Propulsion 1 | . . . 1 . Utility 1 | . . . 1 . Weapon . | . . . . . Parts Attached 18 | 6 . 5 1 6 Power 3 | 1 . 1 1 . Engine 3 | 1 . 1 1 . Core . | . . . . . Reactor . | . . . . . Propulsion 7 | 2 . 1 . 4 Treads . | . . . . . Leg 3 | 2 . 1 . . Wheel . | . . . . . Hover . | . . . . . Flight 4 | . . . . 4 Utility 3 | 1 . 2 . . Device 1 | . . 1 . . Storage 2 | 1 . 1 . . Processor . | . . . . . Hackware . | . . . . . Protection . | . . . . . Artifact . | . . . . . Weapon 5 | 2 . 1 . 2 Energy Gun . | . . . . . Energy Cannon . | . . . . . Ballistic Gun 3 | 2 . 1 . . Ballistic Cannon . | . . . . . Launcher 1 | . . . . 1 Special Weapon . | . . . . . Impact Weapon . | . . . . . Slashing Weapon 1 | . . . . 1 Piercing Weapon . | . . . . . Special Melee Weapon . | . . . . . Unidentified Prototypes . | . . . . . Parts Lost 8 | . . . . 8 Power 1 | . . . . 1 Propulsion 3 | . . . . 3 Utility 1 | . . . . 1 Weapon 3 | . . . . 3 Highest Loss Streak 6 | . . . . 6 To Critical Strikes . | . . . . . Average Slot Usage (%) 86 | . 85 99 77 68 Engine 12 | . 14 14 11 10 Leg 23 | . 28 28 22 13 Device 11 | . . 13 11 10 Storage 12 | . 14 14 11 11 Ballistic Gun 23 | . 28 28 22 13 Launcher 1 | . . . . 7 Naked Turns . | . . . . . Heaviest Build 21 | 13 13 19 19 21 Greatest Support 20 | 20 20 20 20 20 Greatest Overweight (x) 2 | . . . . 2 Average Overweight (x) . | . . . . 1 Largest Inventory Capacity 10 | 8 8 10 10 10 Average Capacity 9 | 7 8 8 10 10 Most Carried 10 | 2 2 8 10 10 Average Carried 7 | 1 2 7 8 9 Final Capacity 10 | 8 8 10 10 10 Final Carried 10 | 2 2 8 10 4 Class Distribution -------------------- 100% | Mutant Dominant Class ---------------- Mutant | -10/Materials Mutant | -10/Mines Mutant | -9/Materials Mutant | -9/Mines Resources | -11 -10 -10 -9 -9 ----------- Run | Jun Mat Min Mat Min Matter Collected 594 | 138 . 302 58 96 Remotely . | . . . . . Salvage Created 542 | 90 51 277 112 12 Parts 47 | 5 3 25 14 . Haulers Intercepted 2 | . 1 . 1 . Recyclers Shooed 1 | . . 1 . . Parts Field Recycled . | . . . . . Retrieved Matter . | . . . . . Parts Self-Destructed . | . . . . . Prevented . | . . . . . Kills | -11 -10 -10 -9 -9 ------- Run | Jun Mat Min Mat Min Combat Hostiles Destroyed 17 | . . 10 4 3 Guns 14 | . . 10 4 . AOE 3 | . . . . 3 Classes Destroyed 6 | 2 1 2 . 1 Tunneler 2 | 1 . 1 . . Hauler 2 | . 1 . 1 . Recycler 1 | 1 . . . . Swarmer 10 | . . 6 4 . Grunt 4 | . . 4 . . Assembled 3 | . . . . 3 Best Kill Streak 4 | 1 1 4 3 3 Combat Bots Only 4 | . . 4 3 3 Max Kills in Single Turn 2 | 1 1 1 1 2 Gunslinging . | . . . . . Exploded 2 | . . . . 2 Melee . | . . . . . Uniques/NPCs Destroyed . | . . . . . Combat | -11 -10 -10 -9 -9 -------- Run | Jun Mat Min Mat Min Damage Taken 1192 | . . 309 318 565 Core 510 | . . 85 79 346 Absorbed by Shields . | . . . . . Core Remaining (%) 83 | 100 . 66 . . Volleys Fired 64 | 9 3 22 20 10 Largest 2 | 2 2 2 2 2 Hottest 53 | 40 40 40 40 53 Shots Fired 123 | 18 6 44 40 15 Gun 119 | 18 6 44 40 11 Cannon . | . . . . . Launcher 4 | . . . . 4 Special . | . . . . . Kinetic 119 | 18 6 44 40 11 Thermal . | . . . . . Explosive 4 | . . . . 4 Electromagnetic . | . . . . . Robot Hit Streak 10 | 6 7 4 10 8 Robot Miss Streak 4 | 2 2 3 4 2 Penetration Max . | . . . . . Secondary Targets 4 | . . 4 . . Max Gunslinging Chain 1 | . . 1 . . Shots Hit Robots 69 | 11 3 22 23 10 Core Hits 35 | 4 2 17 6 6 Critical Kills . | . . . . . Critical Parts Destroyed . | . . . . . Critical Strikes . | . . . . . Melee Attacks 1 | . . . . 1 Impact . | . . . . . Slashing 1 | . . . . 1 Piercing . | . . . . . Sneak Attacks . | . . . . . Combat Hostiles . | . . . . . Follow-up Attacks . | . . . . . Damage Inflicted 955 | 117 37 259 264 278 Guns 750 | 117 37 256 264 76 Cannons . | . . . . . Explosions 202 | . . . . 202 Melee . | . . . . . Ramming 3 | . . 3 . . Kinetic 750 | 117 37 256 264 76 Thermal . | . . . . . Explosive 202 | . . . . 202 Electromagnetic . | . . . . . Impact . | . . . . . Slashing . | . . . . . Piercing . | . . . . . Highest Corruption 1 | . . . 1 1 Average Corruption 1 | . . . 1 1 Corruption Purged . | . . . . . Corruption Blocked . | . . . . . Effects 5 | . . . 2 3 Matter Fused 2 | . . . 1 1 Heat Flow Errors 2 | . . . . 2 Energy Discharges 1 | . . . 1 . Overload Shots . | . . . . . Overflow Damage 5 | . . . . 5 Projectiles . | . . . . . Explosions 5 | . . . . 5 Melee . | . . . . . Knockbacks . | . . . . . Impact . | . . . . . Kinetic . | . . . . . Secondary . | . . . . . Self-Inflicted Damage 39 | . . . . 39 Shots 1 | . . . . 1 Rammed . | . . . . . Targets Rammed 1 | . . 1 . . Kicked 1 | . . 1 . . Crushed . | . . . . . Highest Temperature 247 | . . 15 . 247 Average Temperature 83 | . . 8 . 105 Received Heat Transfer 261 | . . 81 60 120 Siege Activations . | . . . . . Robots Corrupted . | . . . . . Combat Hostiles . | . . . . . Parts Fried . | . . . . . Impact Corruptions . | . . . . . Robots Melted . | . . . . . Combat Hostiles . | . . . . . Parts Melted . | . . . . . Heat Transferred . | . . . . . Parts Sabotaged . | . . . . . Parts Stolen . | . . . . . Parts Stripped . | . . . . . Power Chain Reactions . | . . . . . Missiles Intercepted . | . . . . . Alert | -11 -10 -10 -9 -9 ------- Run | Jun Mat Min Mat Min Peak Influence 300 | 10 48 249 300 131 Initial 117 | . 6 14 28 117 Average 112 | 3 21 127 131 114 Maximum Alert Level 1 | . . 1 1 . Low Security (%) 92 | 100 100 98 71 100 Level 1 7 | . . 1 28 . Level 2 . | . . . . . Level 3 . | . . . . . Level 4 . | . . . . . Level 5 . | . . . . . High Security . | . . . . . Max Security . | . . . . . Squads Dispatched 2 | . 1 . 1 . Investigation . | . . . . . Extermination . | . . . . . Reinforcement 2 | . 1 . 1 . Assault . | . . . . . Garrison . | . . . . . Intercept . | . . . . . Searches Triggered . | . . . . . Construction Impeded . | . . . . . Haulers Reinforced . | . . . . . Active Scanning Responses . | . . . . . Cargo Convoy Interrupts . | . . . . . Stealth | -11 -10 -10 -9 -9 --------- Run | Jun Mat Min Mat Min Distress Signals 2 | . . . 2 . Communications Jammed . | . . . . . Distress Signals . | . . . . . Times Spotted 35 | . 3 10 17 5 Peak Tracking Total 6 | . 1 4 6 2 Tactical Retreats 3 | . . 1 2 . Traps | -11 -10 -10 -9 -9 ------- Run | Jun Mat Min Mat Min Traps Triggered . | . . . . . Indirectly . | . . . . . Trap Hack Attempts . | . . . . . Triggered . | . . . . . Disarmed . | . . . . . Reprogrammed . | . . . . . Reused . | . . . . . Traps Extracted . | . . . . . Installed . | . . . . . Triggered . | . . . . . Machines | -11 -10 -10 -9 -9 ---------- Run | Jun Mat Min Mat Min Machines Disabled . | . . . . . Max in Single Turn . | . . . . . Machines Repaired . | . . . . . Machines Sabotaged . | . . . . . Overloaded Fab Kills . | . . . . . Hacking | -11 -10 -10 -9 -9 --------- Run | Jun Mat Min Mat Min Machines Accessed 5 | . 3 . 2 . Terminals 5 | . 3 . 2 . Fabricators . | . . . . . Repair Stations . | . . . . . Recycling Units . | . . . . . Scanalyzers . | . . . . . Garrison Access . | . . . . . Total Hacks 13 | . 8 . 5 . Successful 3 | . 2 . 1 . Failed 10 | . 6 . 4 . Catastrophic 3 | . 1 . 2 . Database Lockouts . | . . . . . Manual 11 | . 6 . 5 . Terminals 13 | . 8 . 5 . Fabricators . | . . . . . Repair Stations . | . . . . . Recycling Units . | . . . . . Scanalyzers . | . . . . . Garrison Access . | . . . . . Terminal Hacks 1 | . 1 . . . Zone Layout 1 | . 1 . . . Fabricator Hacks . | . . . . . Repair Station Hacks . | . . . . . Recycling Unit Hacks . | . . . . . Scanalyzer . | . . . . . Garrison Access Hacks . | . . . . . Unauthorized Hacks 2 | . 1 . 1 . Terminals 2 | . 1 . 1 . Assimilate 1 | . 1 . . . Botnet 1 | . . . 1 . Fabricators . | . . . . . Repair Stations . | . . . . . Recycling Units . | . . . . . Scanalyzers . | . . . . . Garrison Access . | . . . . . Data Cores Recovered . | . . . . . Used . | . . . . . Hacking Detections 5 | . 3 . 2 . Full Trace Events 1 | . . . 1 . Feedback Events 1 | . . . 1 . Corruption 1 | . . . 1 . Feedback Blocked . | . . . . . Robot Schematics Acquired . | . . . . . Robots Built . | . . . . . Authchips . | . . . . . Time . | . . . . . Total Robot Build Rating . | . . . . . Part Schematics Acquired . | . . . . . Parts Built . | . . . . . Authchips . | . . . . . Time . | . . . . . Total Part Build Rating . | . . . . . Parts Repaired . | . . . . . Time . | . . . . . Parts Recycled . | . . . . . Recycled Matter . | . . . . . Retrieved Matter . | . . . . . Retrieved Components . | . . . . . Parts Scanalyzed . | . . . . . Part Schematics Acquired . | . . . . . Parts Damaged . | . . . . . Bothacking | -11 -10 -10 -9 -9 ------------ Run | Jun Mat Min Mat Min Used RIF Installer . | . . . . . Robots Hacked . | . . . . . Non-combat . | . . . . . Combat . | . . . . . Robot Hacks Applied . | . . . . . Relay Couplers Released . | . . . . . Fabnet Peak Effective % . | . . . . . Robots Rewired . | . . . . . Allies Hacked . | . . . . . Hacks Repelled . | . . . . . Allies | -11 -10 -10 -9 -9 -------- Run | Jun Mat Min Mat Min Total Allies 2 | . 1 1 . . Largest Group 1 | . 1 1 1 . Highest-Rated Group 31 | . 10 31 31 . Highest-Rated Ally 31 | . 10 31 31 . Total Orders . | . . . . . Ally Attacks 12 | . . . 12 . Total Damage 127 | . . . 127 . Kills 4 | . . . 4 . Allies Corrupted . | . . . . . Allies Melted . | . . . . . Intel | -11 -10 -10 -9 -9 ------- Run | Jun Mat Min Mat Min Robot Analysis Total . | . . . . . Derelict Logs Recovered 1 | . . 1 . . Drone Launches . | . . . . . Drone Recoveries . | . . . . . Exploration | -11 -10 -10 -9 -9 ------------- Run | Jun Mat Min Mat Min Turns Passed 1677 | 91 89 752 362 383 Spaces Moved 1090 | 48 65 552 237 188 Core 9 | 9 . . . . Treads . | . . . . . Legs 1065 | 39 65 552 237 172 Wheels . | . . . . . Hover . | . . . . . Flight 16 | . . . . 16 Fastest Speed 34 | 50 120 120 120 34 Average Speed 130 | 106 120 120 120 183 Slowest Speed 260 | 120 120 120 120 260 Overloaded Moves . | . . . . . Propulsion Burnouts . | . . . . . Robots Hopped 1 | . . . . 1 Cave-ins Triggered . | . . . . . Exploration Rate (%) 43 | 4 21 95 29 67 Regions Visited 4 Branch Regions 2 Pre-discovered Areas 1 | . . 1 . . Known Exits Taken . | . . . . . Unknown Exits Taken 4 | 1 1 1 1 . Scrap Searched 2 | . . 2 . . Spaces Dug . | . . . . . Terrain Destroyed 34 | . . . . 34 Melee . | . . . . . Projectile . | . . . . . AOE 34 | . . . . 34 Terrain Rammed . | . . . . . Walls Destroyed . | . . . . . Machines Disabled . | . . . . . Actions | -11 -10 -10 -9 -9 --------- Run | Jun Mat Min Mat Min Total 1229 | 68 70 603 278 210 Wait 35 | 4 3 4 18 6 Move 1084 | 47 64 551 236 186 Hop 1 | . . . . 1 Pick Up 17 | 2 . 13 2 . Fast Attach 7 | 6 . 1 . . Attach 6 | . . . . 6 Detach . | . . . . . Swap 5 | . . 4 1 . Drop 8 | . . 7 1 . Fire 64 | 9 3 22 20 10 Melee 1 | . . . . 1 Ram . | . . . . . Kick 1 | . . 1 . . Crush . | . . . . . Escape Stasis . | . . . . . Rewire . | . . . . . Trap . | . . . . . Miscellaneous . | . . . . . Route ------- -11/Junkyard -10/Materials -10/Mines -9/Materials -9/Mines History --------- Turn | Location | Event 5 | -11/Junkyard | Discovered new exit (range 16) 92 | -11/Junkyard | Entered Materials 175 | -10/Materials | Discovered new exit (range 5) 181 | -10/Materials | Entered Mines 247 | -10/Mines | Found a damaged Exp. Sensor Array with a note attached 257 | -10/Mines | Found Prototype Device 311 | -10/Mines | Build established: Mutant 375 | -10/Mines | Received a Rocket Launcher from a helpful Derelict 476 | -10/Mines | Learned location of Storage (-7) 859 | -10/Mines | Discovered new exit (range 12) 915 | -10/Mines | Received a Mining Laser from a helpful Derelict 933 | -10/Mines | Entered Materials 933 | -9/Materials | Accompanied by 1 ally 933 | -9/Materials | Evolved 2 slots: Propulsion x1, Utility x1 1232 | -9/Materials | Discovered new exit (range 16) 1295 | -9/Materials | Entered Mines 1322 | -9/Mines | Assembled infested the area 1667 | -9/Mines | Core integrity fell below 50% 1675 | -9/Mines | Core integrity fell below 20% 1678 | -9/Mines | Destroyed by D-53 Grenadier with Mini Grenade Launcher Last Messages --------------- 01434_ Acquired 1 matter. 01447_ Acquired 21 matter. 01452_ Acquired 14 matter. 01460_ Acquired 44 matter. 01502_ The unstable cave ceiling collapses. 01509_ System corrupted: Matter fused (-8). 01529_ T-07 Excavator is excavating. 01594_ K-01 Serf collects debris. 01595_ Acquired 8 matter. 01599_ K-01 Serf collects debris. 01662_ Lgt. Assault Rifle destroyed. 01663_ Rocket Launcher destroyed. 01663_ Aluminum Leg destroyed. 01664_ Ion Engine destroyed. 01665_ The unstable cave ceiling collapses. 01665_ Flight Unit destroyed. 01668_ The unstable cave ceiling collapses. 01669_ Heat Sink destroyed. 01670_ The unstable cave ceiling collapses. 01674_ D-53 Grenadier destroyed. Map ----- +----------------------------------------------------+ | ??### #?########### ##????? ???????????? | | ????## # #???????????# #????? ???????????? | | ?????###=!#???????????# #????? ???????????? | | ???#####|!#???????????# #????? #???????????? | | #### *= =!#???????????# ##????# ##??????????? | | % #####???????????## ###??# ???????????? | | #????????????????## #### #####???????? | | #######????????????????## ## ^#???????? | | ###????????????????????# """ ## ## #???????? | | ##??????????????????# """ ## # #???????? | | ######????????????# """ # ##??????? | | ##???????????## # ^ ##?????? | | " #????????????## ### ## ^ ##????? | | #???????????## ##?# #### ## #?? | | #???????????# ##???# #??# #?? | | #?????????### #?????# ##?# #?? | | #?????????? ##?#### #### ##?? | | #?????????### ### ####### ##??? | | ## #???#???????# ##????####???? | | # ## ##### ####### ##??????????? | | # $ # #??????????? | | # # ????## #??????????? | | # ????# # ##??????????? | | # ## ?### # ##???????????? | | # ??# % d # #????????????? | | ## # ### # @ ## ##????????????? | | ?? # # #?#####?????????????? | | ??? # #### ## #??????????????????? | | ???? # ??# #### #??????????????????? | | ???## # ??# #??##### #??????????????????? | | ???# ## #??# #?????? #?????????????????? | | #### # #??# #????? ????????????????? | | #?# #### #???? #### ???????????????? | | ### #??? #???# ??????????????? | | """ # ######?? #????# ?????????????? | | """ #???# ??????###### ????????????? | | """ #???#### #?????????????#????????????? | | % #% ###??????###???????????????????????????? | | ###??????????????????????????????????????? | | # ### ##????????????????????????????????????????? | | # #?## #?????????????????????????????????????????? | | # #??# #?????????????????????????????????????????? | | #??# #?????????????????????????????????????????? | | ###??# %?????????????????????????????????????????? | | ?????###?????????????????????????????????????????? | | ?????????????????????????????????????????????????? | | ?????????????????????????????????????????????????? | | ?????????????????????????????????????????????????? | | ?????????????????????????????????????????????????? | | ?????????????????????????????????????????????????? | +----------------------------------------------------+ Best States ------------- Heat Dissipation 38 Energy Generation 10 Energy Capacity 250 Matter Stores 300 Matter Capacity 300 Sight Range 16 Terrain Scan Density 10 Evasion (%) 63 Item Schematics ----------------- None Robot Schematics ------------------ None Fabricated ------------ Nothing Alien Tech Used ----------------- None Achievements -------------- None Challenges ------------ None Game ------ Seed MakeshiftDamperDevice Manual? 0 Play Time 00:13:48 Cumulative 48.6 hours Start 2024.01.04 @ 22:30:11 End 2024.01.04 @ 22:41:56 Sessions 1 Manual Loads 0 Difficulty Rogue Special Mode None Game No. 19 Rogue 11 Adventurer 8 Explorer 0 Win Type - Total 1 Types 1/0/0/0/0/0/0/0/0 Lore% 35 Gallery% 42 Achievement% 34 Wizard Run 0 Options --------- ASCII 0 Keyboard 1 Movement Numpad Keybinds 1 Fullscreen 2 Font 18/TerminusBold Map View 76x50 Tactical HUD 1 Map Filters NONE Filters NONE Steam 0 RUN: 04a16d33-1033-4bee-89a6-7ec84bfc6dc8